Cogmind - Beta 15 @@@ ROGUE MODE // 2025.05.09 @ 18:46:02 Player: Zane Result: Destroyed by Y-54 Guardian with Gatling Laser Performance ------------- Evolutions (4) 2000 Regions Visited (6) 1200 Robots Destroyed (34) 170 Value Destroyed (1180) 1180 Prototype IDs (2) 40 Alien Tech Used (0) 0 Bonus (617) 617 TOTAL SCORE: 5207 Bonus ------- Follower Combat Kills 336 Registered with UFD 300 Friendly Fire -19 Cogmind --------- Core Integrity 0/850 Matter 283/300 Energy 67/290 System Corruption 15% Temperature Cool (6) Movement Core (200) Ox3 Location -6/Extension Parts ------- > --- POWER (2) -------- Improved Deuterium Engine > --- PROPULSION (4) --- Overtuned Scrapsphere > --- UTILITY (6) ------ (None) > --- WEAPON (3) ------- (None) > --- INVENTORY (5) ---- Light Treads Advanced Signal Interpreter Improved Reaction Control System Peak State ------------ > --- POWER ------------ Light Angular Momentum Engine Fusion Compressor > --- PROPULSION ------- Carbon-fiber Leg Carbon-fiber Leg Flexi-carbon Leg Improved VSS Leg > --- UTILITY ---------- Improved Heat Sink Improved Heat Sink Large Storage Unit Target Analyzer Improved Light Armor Plating Improved Shield Generator > --- WEAPON ----------- Pulse Rifle Heavy Laser Heavy Laser > --- INVENTORY -------- Improved Deuterium Engine Light Treads Light Treads Light Treads Overtuned Scrapsphere Advanced Signal Interpreter Improved Reaction Control System A0-MCA's Component Scanner Shock Rifle Gauss Rifle Gauss Rifle Advanced Assault Cannon Improved Proton Missile Launcher Plasma Cutter [Rating: 59] Favorites ----------- Power Deuterium Engine Engine Deuterium Engine Power Core Fusion Compressor Propulsion Light Treads Treads Light Treads Leg Carbon-fiber Leg Wheel Overtuned Scrapsphere Utility Large Storage Unit Device Seismic Detector Storage Large Storage Unit Processor Melee Analysis Suite Hackware Hacking Suite Protection Medium Armor Plating Weapon Assault Rifle Energy Gun Heavy Laser Energy Cannon Particle Cannon Ballistic Gun Assault Rifle Launcher Grenade Launcher Special Weapon Plasma Cutter Impact Weapon Powered Hammer Slashing Weapon Axe Build | -11 -10 -10 -10 -8 -6 -6 ------- Run | Yrd Mat Min Sub Scr Fac Ext Slots Evolved 8 | . . . . . 8 . Power 1 | . . . . . 1 . Propulsion 2 | . . . . . 2 . Utility 4 | . . . . . 4 . Weapon 1 | . . . . . 1 . Parts Attached 62 | 6 3 1 2 7 30 13 Power 11 | 1 . . . 2 6 2 Engine 8 | 1 . . . 2 3 2 Core 3 | . . . . . 3 . Reactor . | . . . . . . . Propulsion 18 | 2 . . . 3 8 5 Treads 8 | 2 . . . 3 2 1 Leg 8 | . . . . . 5 3 Wheel 2 | . . . . . 1 1 Hover . | . . . . . . . Flight . | . . . . . . . Utility 18 | 2 1 . 1 . 10 4 Device 5 | 1 . . . . 2 2 Storage 2 | 1 1 . . . . . Processor 4 | . . . . . 3 1 Hackware 1 | . . . . . 1 . Protection 6 | . . . 1 . 4 1 Artifact . | . . . . . . . Weapon 15 | 1 2 1 1 2 6 2 Energy Gun 3 | . . . . . 2 1 Energy Cannon 2 | . 1 . . . 1 . Ballistic Gun 2 | 1 . . . 1 . . Ballistic Cannon . | . . . . . . . Launcher 2 | . . 1 . . . 1 Special Weapon 2 | . 1 . 1 . . . Impact Weapon 1 | . . . . . 1 . Slashing Weapon 3 | . . . . 1 2 . Piercing Weapon . | . . . . . . . Special Melee Weapon . | . . . . . . . Unidentified Prototypes . | . . . . . . . Parts Lost 35 | . . . . . 17 18 Power 5 | . . . . . 3 2 Propulsion 9 | . . . . . 4 5 Utility 13 | . . . . . 6 7 Weapon 8 | . . . . . 4 4 Highest Loss Streak 17 | . . . . . 9 17 To Critical Strikes 1 | . . . . . 1 . Average Backups 11 | 3 10 15 14 13 11 5 Power . | . 1 1 1 1 . . Propulsion 2 | 1 2 4 2 1 3 . Utility 4 | . 2 4 5 6 4 2 Weapon 2 | 1 3 4 4 2 2 1 Tool/Special . | . . . . . . . Unused Backups 22 | . . 4 3 7 . 8 Power 1 | . . . . 1 . . Propulsion 5 | . . . 2 2 . 1 Utility 7 | . . 1 1 2 . 3 Weapon 9 | . . 3 . 2 . 4 Tool/Special . | . . . . . . . Average Slot Usage (%) 93 | . 94 100 100 100 88 79 Engine 10 | . 14 14 14 14 7 1 Core 1 | . . . . . 3 5 Treads 19 | . 28 28 28 28 8 6 Leg 4 | . . . . . 13 8 Device 9 | . 14 14 9 3 9 14 Storage 10 | . 14 14 14 14 5 5 Processor 3 | . . . . . 12 5 Protection 5 | . . . 4 10 4 1 Energy Gun 2 | . . . . . 1 14 Energy Cannon 2 | . 7 6 9 1 1 . Ballistic Gun 8 | . 14 14 13 14 1 . Special Weapon 1 | . 1 1 3 . . 4 Slashing Weapon 6 | . . . . 11 9 . Peak Build Rating 59 | 6 9 10 11 20 58 59 Average Rating 23 | 4 8 9 10 15 45 39 On Entrance 12 | . 6 9 9 11 20 30 Naked Turns 48 | . . . . . 46 2 Heaviest Build 59 | 13 32 32 38 42 59 54 Greatest Support 90 | 40 40 40 40 42 90 65 Greatest Overweight (x) 12 | . . . . 1 4 12 Average Overweight (x) . | . . . . . . 5 Largest Inventory Capacity 15 | 8 15 15 15 15 15 15 Average Capacity 14 | 7 12 15 15 15 14 14 Most Carried 15 | 6 15 15 15 15 15 14 Average Carried 12 | 3 10 14 14 14 12 5 Final Capacity 15 | 8 15 15 15 15 15 5 Final Carried 15 | 6 15 15 15 15 5 3 Class Distribution -------------------- 58% | Mutant 10% | Derelict-Mutant 8% | Gladiator 5% | Gunner 5% | Scavenger-Tank 5% | Scavenger-Gunner Dominant Class ---------------- Mutant | -10/Materials Mutant | -10/Mines Mutant | -10/Subcaves Mutant | -8/Scraptown Gladiator | -6/Factory Scavenger-Tank | -6/Extension Resources | -11 -10 -10 -10 -8 -6 -6 ----------- Run | Yrd Mat Min Sub Scr Fac Ext Matter Collected 1408 | 161 188 35 148 70 382 424 Remotely . | . . . . . . . Salvage Created 1730 | 120 47 . 297 . 1266 . Parts 78 | 8 8 . 20 . 42 . Haulers Intercepted . | . . . . . . . Recyclers Shooed 2 | 1 . . . . . 1 Parts Field Recycled . | . . . . . . . Retrieved Matter . | . . . . . . . Parts Self-Destructed 9 | . . . 9 . . . Prevented . | . . . . . . . Kills | -11 -10 -10 -10 -8 -6 -6 ------- Run | Yrd Mat Min Sub Scr Fac Ext Combat Hostiles Destroyed 25 | . 2 . 6 . 17 . Melee 11 | . . . . . 11 . Guns 5 | . 2 . 3 . . . Cannons 7 | . . . 3 . 4 . Classes Destroyed 11 | 2 2 . 1 . 6 . Worker 1 | . . . . . 1 . Tunneler 3 | 3 . . . . . . Recycler 4 | 1 . . . . 3 . Operator 1 | . 1 . . . . . Swarmer 6 | . 2 . . . 4 . Grunt 5 | . . . . . 5 . Brawler 1 | . . . . . 1 . Sentry 2 | . . . . . 2 . Hunter 2 | . . . . . 2 . Programmer 3 | . . . . . 3 . Subdweller 6 | . . . 6 . . . Best Kill Streak 6 | 3 1 . 3 . 6 . Combat Bots Only 4 | . 1 . 3 . 4 . Max Kills in Single Turn 1 | 1 1 . 1 . 1 . Gunslinging . | . . . . . . . Exploded . | . . . . . . . Melee 1 | . . . . . 1 . Uniques/NPCs Destroyed . | . . . . . . . Combat | -11 -10 -10 -10 -8 -6 -6 -------- Run | Yrd Mat Min Sub Scr Fac Ext Hostile Shots Fired 462 | . 6 . 21 . 312 123 Missed 175 | . 4 . 5 . 116 50 Hits 287 | . 2 . 16 . 196 73 Melee 30 | . . . . . 30 . Projectile 257 | . 2 . 16 . 166 73 Critical Strikes 13 | . . . . . 9 4 Damage Taken 5011 | . 16 21 412 . 3223 1339 Core 958 | . 7 21 75 . 592 263 Absorbed by Shields 487 | . . . . . 400 87 Regen/Repaired (Parts) 126 | . . . . . 126 . Core Remaining (%) 79 | 100 . . . 58 . . Volleys Fired 85 | 20 9 . 39 . 7 10 Largest 3 | 1 2 . 2 . 2 3 Hottest 201 | 20 88 . 100 . 95 201 Shots Fired 124 | 20 13 . 55 . 15 21 Gun 73 | 20 9 . 16 . 9 19 Cannon 26 | . 4 . 16 . 6 . Launcher 2 | . . . . . . 2 Special 23 | . . . 23 . . . Kinetic 51 | 20 9 . 16 . 6 . Thermal 71 | . 4 . 39 . 9 19 Explosive . | . . . . . . . Electromagnetic 2 | . . . . . . 2 Robot Hit Streak 20 | 8 6 . 20 . 3 9 Robot Miss Streak 3 | 3 1 . 1 . 2 3 Penetration Max . | . . . . . . . Secondary Targets . | . . . . . . . Shots Hit Robots 133 | 15 9 . 27 . 68 14 Core Hits 50 | 4 4 . 12 . 21 9 Critical Kills . | . . . . . . . Critical Parts Destroyed 2 | . . . . . 2 . Critical Strikes 9 | . . . 1 . 8 . Destroy 1 | . . . 1 . . . Smash 3 | . . . . . 3 . Sever 5 | . . . . . 5 . Melee Attacks 108 | . . . . . 108 . Impact 44 | . . . . . 44 . Slashing 64 | . . . . . 64 . Piercing . | . . . . . . . Sneak Attacks 6 | . . . . . 6 . Combat Hostiles 2 | . . . . . 2 . Follow-up Attacks 14 | . . . . . 14 . Damage Inflicted 3914 | 191 126 1 503 . 2632 461 Guns 719 | 191 84 . 167 . 34 243 Cannons 503 | . 42 . 336 . 125 . Explosions 186 | . . . . . . 186 Melee 2473 | . . . . . 2473 . Ramming 33 | . . 1 . . . 32 Kinetic 457 | 191 84 . 167 . 15 . Thermal 881 | . 42 . 336 . 144 359 Explosive . | . . . . . . . Electromagnetic 70 | . . . . . . 70 Impact 1140 | . . . . . 1140 . Slashing 1333 | . . . . . 1333 . Piercing . | . . . . . . . Highest Corruption 15 | . . . . . 15 15 Average Corruption 11 | . . . . . 7 15 Corruption Purged . | . . . . . . . Corruption Blocked . | . . . . . . . Effects 75 | . . . . . 30 45 Message Errors 23 | . . . . . 10 13 Matter Fused 14 | . . . . . 6 8 Heat Flow Errors 11 | . . . . . 5 6 Energy Discharges 11 | . . . . . 3 8 Data Loss (minor) 4 | . . . . . 1 3 Data Loss (major) 6 | . . . . . 2 4 Misfires 4 | . . . . . 2 2 Misdirections 1 | . . . . . 1 . Weapon Failures 1 | . . . . . . 1 Overload Shots . | . . . . . . . Overflow Damage 429 | . . . . . 429 . Projectiles . | . . . . . . . Explosions . | . . . . . . . Melee 429 | . . . . . 429 . Knockbacks 2 | . . . . . 2 . Impact 2 | . . . . . 2 . Kinetic . | . . . . . . . Secondary . | . . . . . . . Self-Inflicted Damage . | . . . . . . . Shots . | . . . . . . . Rammed 1 | . . 1 . . . . Targets Rammed 5 | . . 1 . . . 4 Kicked 4 | . . . . . . 4 Crushed . | . . . . . . . Highest Temperature 265 | . 27 . 2 . 264 265 Average Temperature 65 | . 15 . 1 . 78 65 Received Heat Transfer 944 | . . . 129 . 544 271 Siege Activations . | . . . . . . . Martial Activations . | . . . . . . . Shielding Activations . | . . . . . . . Robots Disrupted . | . . . . . . . Combat Hostiles . | . . . . . . . Robots Corrupted 4 | . . . . . 4 . Combat Hostiles 2 | . . . . . 2 . Parts Fried 6 | . . . . . 6 . Impact Corruptions 13 | . . . . . 13 . Robots Melted . | . . . . . . . Combat Hostiles . | . . . . . . . Parts Melted . | . . . . . . . Heat Transferred 1432 | . 74 . 555 . 222 581 Parts Sabotaged . | . . . . . . . Parts Stolen . | . . . . . . . Parts Stripped . | . . . . . . . Power Chain Reactions 2 | . . . . . . 2 Alert | -11 -10 -10 -10 -8 -6 -6 ------- Run | Yrd Mat Min Sub Scr Fac Ext Maximum Alert Level . | . . . . . . . Low Security (%) 100 | 100 100 100 . . 100 100 Level 1 . | . . . . . . . Level 2 . | . . . . . . . Level 3 . | . . . . . . . Level 4 . | . . . . . . . Level 5 . | . . . . . . . High Security . | . . . . . . . Max Security . | . . . . . . . Peak Influence 146 | 5 50 4 . . 146 73 Initial 11 | . . 4 . . . 11 Average 26 | . 9 . . . 58 10 Influence Increases 1028 | 20 121 . . . 606 281 Destroy 0b10 Robot/C 540 | . 40 . . . 340 160 Destroy 0b10 Robot/NC 45 | 20 5 . . . 20 . Destroy Leader 130 | . 10 . . . 90 30 Allied During Kill 70 | . . . . . . 70 Successful Hack 85 | . 21 . . . 50 14 Disable Machine 30 | . 15 . . . 15 . Destroy Structure 23 | . . . . . 16 7 Lose Combat Pursuer 105 | . 30 . . . 75 . Influence Decreases 1028 | 20 108 13 . . 582 305 Entered New Map 22 | . . 9 . . . 13 Time Decay 731 | 20 108 4 . . 422 177 Lost Part 245 | . . . . . 160 85 Lost Ally 30 | . . . . . . 30 Squads Dispatched 10 | . 1 . . . 7 2 Investigation 2 | . . . . . 2 . Extermination 4 | . . . . . 4 . Reinforcement 4 | . 1 . . . 1 2 Assault . | . . . . . . . Garrison . | . . . . . . . Intercept . | . . . . . . . Searches Triggered . | . . . . . . . Construction Impeded 1 | . . . . . . 1 Haulers Reinforced . | . . . . . . . Active Scanning Responses . | . . . . . . . Cargo Convoy Interrupts . | . . . . . . . Stealth | -11 -10 -10 -10 -8 -6 -6 --------- Run | Yrd Mat Min Sub Scr Fac Ext Distress Signals 3 | . 1 . . . . 2 Communications Jammed . | . . . . . . . Distress Signals . | . . . . . . . Times Spotted 52 | . 7 . 7 . 26 12 Peak Tracking Total 5 | . 3 5 2 . 5 4 Tactical Retreats 5 | . 1 . . . 4 . Traps | -11 -10 -10 -10 -8 -6 -6 ------- Run | Yrd Mat Min Sub Scr Fac Ext Traps Triggered 5 | . . . . . 2 3 Indirectly . | . . . . . . . Trap Hack Attempts . | . . . . . . . Triggered . | . . . . . . . Disarmed . | . . . . . . . Reprogrammed . | . . . . . . . Reused . | . . . . . . . Traps Extracted . | . . . . . . . Installed . | . . . . . . . Triggered . | . . . . . . . Machines | -11 -10 -10 -10 -8 -6 -6 ---------- Run | Yrd Mat Min Sub Scr Fac Ext Machines Disabled 3 | . 2 . . . 1 . Max in Single Turn 1 | . 1 . . . 1 . Garrison Access 1 | . . . . . 1 . Machines Repaired . | . . . . . . . Machines Dismantled 1 | . 1 . . . . . Machines Sabotaged . | . . . . . . . Overloaded Fab Kills . | . . . . . . . Hacking | -11 -10 -10 -10 -8 -6 -6 --------- Run | Yrd Mat Min Sub Scr Fac Ext Machines Accessed 17 | . 6 1 . . 6 4 Terminals 13 | . 6 . . . 3 4 Fabricators . | . . . . . . . Repair Stations 1 | . . . . . 1 . Recycling Units . | . . . . . . . Scanalyzers 1 | . . . . . 1 . Garrison Access 1 | . . . . . 1 . Total Hacks 43 | . 19 1 . . 18 5 Successful 18 | . 7 1 . . 7 3 Failed 25 | . 12 . . . 11 2 Catastrophic 4 | . 1 . . . 2 1 Database Lockouts . | . . . . . . . Manual 11 | . 7 . . . 3 1 Terminals 31 | . 19 . . . 7 5 Fabricators . | . . . . . . . Repair Stations 4 | . . . . . 4 . Recycling Units . | . . . . . . . Scanalyzers 3 | . . . . . 3 . Garrison Access 4 | . . . . . 4 . Terminal Hacks 13 | . 7 1 . . 2 3 Robot Analysis 1 | . 1 . . . . . Prototype ID Bank 1 | . 1 . . . . . Open Door 4 | . . 1 . . . 3 Locate Traps 1 | . 1 . . . . . Hauler Manifests 1 | . 1 . . . . . Zone Layout 5 | . 3 . . . 2 . Fabricator Hacks . | . . . . . . . Repair Station Hacks 2 | . . . . . 2 . Scan Component 1 | . . . . . 1 . Repair 1 | . . . . . 1 . Recycling Unit Hacks . | . . . . . . . Scanalyzer 2 | . . . . . 2 . Insert Component 1 | . . . . . 1 . Analyze 1 | . . . . . 1 . Garrison Access Hacks 1 | . . . . . 1 . Seal Access 1 | . . . . . 1 . Unauthorized Hacks . | . . . . . . . Terminals . | . . . . . . . Fabricators . | . . . . . . . Repair Stations . | . . . . . . . Recycling Units . | . . . . . . . Scanalyzers . | . . . . . . . Garrison Access . | . . . . . . . Data Cores Recovered . | . . . . . . . Used . | . . . . . . . Hacking Detections 15 | . 6 . . . 6 3 Full Trace Events 2 | . . . . . 2 . Feedback Events . | . . . . . . . Feedback Blocked . | . . . . . . . Robot Schematics Acquired . | . . . . . . . Robots Built . | . . . . . . . Authchips . | . . . . . . . Time . | . . . . . . . Total Robot Build Rating . | . . . . . . . Part Schematics Acquired 1 | . . . . . 1 . Parts Built . | . . . . . . . Authchips . | . . . . . . . Time . | . . . . . . . Total Part Build Rating . | . . . . . . . Parts Repaired 1 | . . . . . 1 . Time 22 | . . . . . 22 . Parts Recycled . | . . . . . . . Recycled Matter . | . . . . . . . Retrieved Matter . | . . . . . . . Retrieved Components . | . . . . . . . Parts Scanalyzed 1 | . . . . . 1 . Part Schematics Acquired 1 | . . . . . 1 . Parts Damaged . | . . . . . . . Bothacking | -11 -10 -10 -10 -8 -6 -6 ------------ Run | Yrd Mat Min Sub Scr Fac Ext Used RIF Installer . | . . . . . . . Robots Hacked . | . . . . . . . Non-combat . | . . . . . . . Combat . | . . . . . . . Robot Hacks Applied . | . . . . . . . Relay Couplers Released . | . . . . . . . Fabnet Peak Effective % . | . . . . . . . Robots Rewired 3 | . . . . . . 3 Allies Hacked . | . . . . . . . Hacks Repelled . | . . . . . . . Allies | -11 -10 -10 -10 -8 -6 -6 -------- Run | Yrd Mat Min Sub Scr Fac Ext Total Allies 7 | . . . . . . 7 Largest Group 7 | . . . . . . 7 Highest-Rated Group 192 | . . . . . . 192 Highest-Rated Ally 39 | . . . . . . 39 Total Orders 1 | . . . . . . 1 AID 1 | . . . . . . 1 Ally Attacks 56 | . . . . . . 56 Total Damage 1065 | . . . . . . 1065 Kills 8 | . . . . . . 8 Allies Corrupted . | . . . . . . . Allies Melted . | . . . . . . . Intel | -11 -10 -10 -10 -8 -6 -6 ------- Run | Yrd Mat Min Sub Scr Fac Ext Active Infowar (turns) 3770 | 21 521 587 423 570 1331 317 Seismic 3770 | 21 521 587 423 570 1331 317 Robot Analysis Total 1 | . 1 . . . . . Derelict Logs Recovered 4 | . . 2 . 2 . . Drone Launches . | . . . . . . . Drone Recoveries . | . . . . . . . Exploration | -11 -10 -10 -10 -8 -6 -6 ------------- Run | Yrd Mat Min Sub Scr Fac Ext Turns Passed 6646 | 121 521 587 639 2233 1392 1153 Spaces Moved 2956 | 44 294 299 267 1059 682 311 Core 191 | 3 . . . . 93 95 Treads 2126 | 41 294 299 267 1059 128 38 Legs 565 | . . . . . 435 130 Wheels 74 | . . . . . 26 48 Hover . | . . . . . . . Flight . | . . . . . . . Fastest Speed 50 | 50 160 160 160 157 50 70 Average Speed 186 | 152 160 160 160 207 131 314 Slowest Speed 650 | 160 160 160 160 240 190 650 Overloaded Moves . | . . . . . . . Propulsion Burnouts . | . . . . . . . Robots Hopped . | . . . . . . . Potential Cave-ins . | . . . . . . . Cave-ins Triggered . | . . . . . . . Exploration Rate (%) 44 | 4 53 76 31 84 25 38 Regions Visited 6 Branch Regions 4 Pre-discovered Areas . | . . . . . . . Known Exits Taken 1 | . . . . . 1 . Unknown Exits Taken 5 | 1 1 1 1 1 . . Scrap Searched 9 | . . 1 . 8 . . Spaces Dug 17 | . . . . . 17 . Terrain Destroyed 19 | . . . . . 17 2 Melee 17 | . . . . . 17 . Projectile . | . . . . . . . AOE 2 | . . . . . . 2 Terrain Rammed . | . . . . . . . Walls Destroyed . | . . . . . . . Machines Disabled . | . . . . . . . Actions | -11 -10 -10 -10 -8 -6 -6 --------- Run | Yrd Mat Min Sub Scr Fac Ext Total 3730 | 75 323 408 375 1097 995 457 Wait 344 | . 4 99 54 4 157 26 Move 2950 | 43 293 298 266 1058 681 311 Hop . | . . . . . . . Pick Up 54 | 6 9 4 3 11 10 11 Fast Attach 36 | 6 1 . . 2 19 8 Attach 20 | . . . . . 13 7 Detach 4 | . . . . . 1 3 Swap 38 | . 2 2 9 6 16 3 Drop 32 | . 1 4 4 16 7 . Fire 85 | 20 9 . 39 . 7 10 Melee 84 | . . . . . 84 . Ram . | . . . . . . . Kick 4 | . . . . . . 4 Crush 1 | . . 1 . . . . Escape Stasis 49 | . . . . . . 49 Rewire 23 | . . . . . . 23 Trap . | . . . . . . . Miscellaneous 6 | . 4 . . . . 2 Route ------- -11/Scrapyard -10/Materials (discovered 2 exits: [*Mat] / *Min) -10/Mines -10/Subcaves -8/Scraptown (discovered 2 exits: *Fac x2) -6/Factory (discovered 3 exits: Fac / Low / *Ext) -6/Extension History --------- Turn | Location | Event 22 | -11/Scrapyard | Discovered new exit (range 15) 122 | -11/Scrapyard | Entered Materials 123 | -10/Materials | Met a group of wandering Federalists 284 | -10/Materials | Discovered new exit (range 13) 323 | -10/Materials | Build established: Mutant 496 | -10/Materials | Discovered new exit (range 8) 643 | -10/Materials | Entered Mines 689 | -10/Mines | Met a Derelict bent on vengeance 714 | -10/Mines | Met a Derelict who couldn't figure out how to use a Trap Extractor 788 | -10/Mines | Learned 4 Materials zone layouts 963 | -10/Mines | Assembled infested the area 1087 | -10/Mines | Received a Rocket Launcher from a helpful Derelict 1106 | -10/Mines | Learned Materials terminal intel 1213 | -10/Mines | Discovered new exit (range 4) 1230 | -10/Mines | Entered Subcaves 1231 | -10/Subcaves | Approached by a straggling Scientist 1255 | -10/Subcaves | A swath of the cavern ceiling suddenly collapsed 1531 | -10/Subcaves | Shifting Twisted Machinery released Sub. Beam Cannon 1533 | -10/Subcaves | Shifting Twisted Machinery released Scrap Shield 1661 | -10/Subcaves | Ambushed by Subdweller buried in earth 1747 | -10/Subcaves | Scientist uncovered a shortcut to Scraptown 1869 | -10/Subcaves | Entered Scraptown 2074 | -8/Scraptown | Visited Science Testing Area 2103 | -8/Scraptown | Heard Great Nut preacher, LISTEN AND RECITE! 2110 | -8/Scraptown | Visited Bundlers 2258 | -8/Scraptown | Visited Awakened 2277 | -8/Scraptown | Visited Comm Corps 2311 | -8/Scraptown | Visited TADAMA 2373 | -8/Scraptown | Visited Fellowship of the Rings 2428 | -8/Scraptown | Visited UFD Registry 2428 | -8/Scraptown | Registered with UFD as "Autoface" 2551 | -8/Scraptown | Scanned Subdweller tech in exchange for log data 2559 | -8/Scraptown | Learned 8 Factory zone layouts 2561 | -8/Scraptown | Learned 12 Factory zone layouts 2592 | -8/Scraptown | Discovered new exit (range 7) 2715 | -8/Scraptown | Guru changed UFD alias to "Novablaster" 3448 | -8/Scraptown | Visited Supply Room 3481 | -8/Scraptown | Visited LU-1G1's Boring Crew 3517 | -8/Scraptown | Visited A0-MCA Data Center 3532 | -8/Scraptown | Given a B+ rating by A0-MCA 3535 | -8/Scraptown | Found A0-MCA's Component Scanner 3567 | -8/Scraptown | Visited Junk Repository 3632 | -8/Scraptown | Visited Derelict Rescue Squad 3659 | -8/Scraptown | Visited Abandonware Association 3694 | -8/Scraptown | Visited DA-N13 Charitable Foundation 3714 | -8/Scraptown | Found DCF Scrap (29 items) 3762 | -8/Scraptown | Visited Research Penetration Think Tank 3800 | -8/Scraptown | Visited Scrap Suit Storage 3852 | -8/Scraptown | Visited Junk Repository 3996 | -8/Scraptown | Discovered new exit (range 3) 4010 | -8/Scraptown | Build established: Derelict-Mutant 4102 | -8/Scraptown | Entered Factory 4102 | -6/Factory | Evolved 8 slots: Power x1, Propulsion x2, Utility x4, Weapon x1 4103 | -6/Factory | Identified exit to Extension 4103 | -6/Factory | Identified exit to Factory 4103 | -6/Factory | Identified exit to Lower Caves 4314 | -6/Factory | Repaired Med. Treads 4488 | -6/Factory | Lost 5 parts (1p2u2w) 4965 | -6/Factory | Build established: Gladiator 5366 | -6/Factory | System corruption reached 10% 5403 | -6/Factory | Core integrity fell below 50% 5407 | -6/Factory | Released all parts (6) 5435 | -6/Factory | Lost 9 parts (2p2n3u2w) 5494 | -6/Factory | Entered Extension 5608 | -6/Extension | Rescued a captive Derelict 5657 | -6/Extension | Rescued a captive Derelict 5657 | -6/Extension | Rescued a captive Derelict 5763 | -6/Extension | Build established: Gunner 6145 | -6/Extension | Build established: Scavenger-Gunner 6417 | -6/Extension | Rescued a captive Derelict 6502 | -6/Extension | Build established: Scavenger-Tank 6572 | -6/Extension | Spotted B-75 Beast 6591 | -6/Extension | Spotted B-75 Beast 6615 | -6/Extension | Allies destroyed B-75 Beast 6618 | -6/Extension | Core integrity fell below 20% 6647 | -6/Extension | Destroyed by Y-54 Guardian with Gatling Laser Last Messages --------------- crushing effect. 06625_ Y-54 Guardian system terminally corrupted. 06626_ VQ-31B(b) heat spikes uncontrollably. 06627_ U-05 Engineer builds a Wall. 06627_ Acquired Imp. Proton Missile Launcher. 06628_ VQ-31B(b) destroyed. 06630_ B-75 Beast suffers critical hit (Burn). 06631_ Acquired 20 matter. 06634_ Q9-KGG(b) destroyed. 06634_ 1O-9PI(g) destroyed. 06634_ Acquired Imp. Deuterium Engine. 06635_ DL<<0O13AB8ZTIGQCYA2NCC 7:VLH/CM 06635_ Knocked back. 06637_ Ovr. Scrapsphere recovered from malfunction. 06638_ Chain reaction triggered in Corrupted Imp. Deuterium Engine. 06644_ Imp. Proton Missile Launcher destroyed. 06645_ U-05 Engineer destroyed. Map ----- +----------------------------------------------------+ | #???????????###+##+## #?????????????????????????? | | #???????????# ## ##????????????????????????? | | #???????????# # #####????????????????????? | | ##???????????# " !! [ #????????????????????? | | ?????????????# # ### #????????????????????? | | ?????????????# ## ##?# #????????????????????? | | ?????????????# ## #??# #????????????????????? | | ?????????????######### #??# #????????????????????? | | ?????????????????????# #??# #????????????????????? | | ?????????????????????# #??# #????????????????????? | | ?????????????????????# #??# #????????????????????? | | ?????????????????????# #??# #????????????????????? | | ?????????????????????# #??# #????????????????????? | | ????????????????????## ##?# #????????????????????? | | ????????????????????# #?# #????????????????????? | | ????????????????????# #?#%#????????????????????? | | ????????????????????# #?# #????????????????????? | | ????????????????????#####?# #????????????????????? | | ??????????????????????????# #????????????????????? | | ??????????????????????????# #????????????????????? | | ??????????????????????????# #????????????????????? | | ??????????????????????????#%###??????????????????? | | ??????????????????????#####%% ######?????????????? | | ??????????????????????#%;;#][= ;; ### ??????????? | | ???????????????????????#%[%!*!%Y "" "?????????? | | ???????????????????????##@%%[! " " ????????? | | ???????????????????????#;[=!= #???????? | | ???????????????????????##![!%| #???????? | | ???????????????????????## !%=! #???????? | | ???????????????????????? % * BB ???????? | | ??????????????????????? BB ???????? | | ?????????????????????? ???????? | | ????????????????????? ????????? | | ???????????????????? R% kk ????????? | | ???????????????????##"### ?????????? | | ????????????????????##??" ?????????? | | ????????????????????????# ??????????? | | ????????????????????????# ???????????? | | ????????????????????????# ?????????????? | | ????????????????????????######T#""???????????????? | | ?????????????????????????????????????????????????? | | ?????????????????????????????????????????????????? | | | | | | | | | | | | | | | | | +----------------------------------------------------+ Best States ------------- Heat Dissipation 65 Energy Generation 31 Energy Capacity 465 Matter Stores 300 Matter Capacity 300 Sight Range 16 Terrain Scan Density 10 Armor Coverage 800 Evasion (%) 55 Targeting Accuracy 6 Melee Accuracy 5 Target Analysis 5 Recoil Reduction 4 Salvage Targeting 2 Offensive Hacking 10 Item Schematics ----------------- Ovr. Titanium Leg | -6/Factory | Scanalyzed Robot Schematics ------------------ None Fabricated ------------ Nothing Repaired ---------- Med. Treads | 31% | -6/Factory Alien Tech Used ----------------- None Achievements -------------- None Challenges ------------ None Game ------ Seed TrapSwarmAccelerator Manual? 0 Play Time 01:31:48 Cumulative 32.3 hours Start 2025.05.09 @ 17:02:13 End 2025.05.09 @ 18:46:02 Sessions 1 Manual Loads 0 Difficulty Rogue Special Mode None Game No. 44 Rogue 44 Adventurer 0 Explorer 0 Win Type - Total 0 Types 0/0/0/0/0/0/0/0/0/0 Lore% 33 Gallery% 29 Achievement% 25 Wizard Run 0 Options --------- Layout 2 ASCII 0 Keyboard 0 Movement Numpad Keybinds 0 Fullscreen 1 Font 24/Smallcaps Map View 50x44 Zoom Use 0% Tactical HUD 1 Map Filters NONE Filters NONE Steam 1 RUN: a2a47720-0d08-4685-ba5f-1737d08afbac